bitfinex/quotes_BTCUSD_20250831
["timestamp","ask_amount","ask_price","bid_price","bid_amount"]
[1756645818020,4.77e-05,108420.0,108410.0,1.29864365]
[1756645818474,4.77e-05,108420.0,108410.0,1.32635765]
[1756645818683,4.77e-05,108420.0,108410.0,1.72635765]
[1756645818895,4.77e-05,108420.0,108410.0,1.73135765]
[1756645820844,4.77e-05,108420.0,108410.0,1.74352342]
[1756645821930,0.18488982,108470.0,108450.0,0.18440306]
[1756645822064,0.18443567,108470.0,108460.0,0.1597831]
[1756645822261,0.18443567,108470.0,108460.0,0.18622287]
[1756645822485,0.18443567,108470.0,108460.0,0.18439977]
[1756645822907,4.773e-05,108470.0,108460.0,0.20533859]
[1756645823112,4.773e-05,108470.0,108460.0,0.3013286]
[1756645823762,0.00504773,108470.0,108460.0,0.3013286]
[1756645823961,0.1894305,108470.0,108460.0,0.49722437]
[1756645824106,0.1844305,108470.0,108460.0,0.49722437]
[1756645825085,0.1854305,108470.0,108460.0,0.49722437]
[1756645825263,0.1864305,108470.0,108460.0,0.49722437]
[1756645825860,0.1864305,108470.0,108460.0,0.52493137]
[1756645826859,0.1864305,108470.0,108460.0,0.1825716]
[1756645827031,0.18439977,108460.0,108450.0,0.4]
[1756645827232,0.18439977,108460.0,108440.0,0.36738073]
[1756645827443,0.18439977,108460.0,108450.0,0.14592]
[1756645827669,0.18439977,108460.0,108450.0,0.1482252]
[1756645828884,0.18639977,108460.0,108450.0,0.1482252]
[1756645829685,0.18639977,108460.0,108450.0,0.33264198]
[1756645829894,0.18639977,108460.0,108450.0,0.33033678]
[1756645830207,0.18639977,108460.0,108450.0,0.14592]
[1756645830832,0.18639977,108460.0,108450.0,0.1482252]
[1756645831217,0.18739977,108460.0,108450.0,0.1482252]
[1756645831594,0.18739977,108460.0,108450.0,0.14592]
[1756645833415,0.18739977,108460.0,108450.0,0.1482252]
[1756645833629,0.18739977,108460.0,108450.0,0.14592]
[1756645834047,0.18441678,108450.0,108440.0,0.25740218]
[1756645834239,0.18441678,108450.0,108440.0,0.57410496]
[1756645835268,0.18541678,108450.0,108440.0,0.57410496]
[1756645837499,0.18541678,108450.0,108440.0,0.41622496]
[1756645837663,0.18541678,108450.0,108440.0,0.57410496]
[1756645837906,0.18541678,108450.0,108440.0,0.22668118]
[1756645838106,0.18541678,108450.0,108440.0,0.38452118]
[1756645839287,0.18541678,108450.0,108440.0,0.38753118]
[1756645840287,0.18541678,108450.0,108440.0,0.38452118]
[1756645840738,0.18541678,108450.0,108440.0,0.34267883]
[1756645840946,0.18443378,108440.0,108430.0,0.02093882]
[1756645841177,0.18443378,108440.0,108430.0,0.27175883]
[1756645842341,0.18443378,108440.0,108430.0,0.27476883]
[1756645843381,0.18443378,108440.0,108430.0,0.27576883]
[1756645843728,0.18443378,108440.0,108430.0,0.31816762]
[1756645843935,0.18443378,108440.0,108430.0,0.27576883]
[1756645844164,0.18443378,108440.0,108430.0,0.27375883]
[1756645844615,0.19350103,108440.0,108430.0,0.27375883]
[1756645845641,0.19350103,108440.0,108430.0,0.002]
[1756645845841,0.19350103,108440.0,108430.0,0.15984]
[1756645848084,0.19350103,108440.0,108430.0,0.002]
[1756645848085,0.35134103,108440.0,108430.0,0.002]
[1756645851864,0.69134103,108440.0,108430.0,0.002]
[1756645852449,0.78432104,108440.0,108430.0,0.002]
[1756645852989,0.78432104,108440.0,108430.0,0.001]
[1756645853188,0.81204504,108440.0,108430.0,0.001]
[1756645853580,0.18446781,108420.0,108410.0,0.00315]
[1756645853977,0.18446781,108420.0,108410.0,0.00745606]
[1756645854416,0.18446781,108420.0,108410.0,0.0053878]
[1756645856523,0.18446781,108420.0,108410.0,0.0073878]
[1756645858181,0.18446781,108420.0,108410.0,0.00608174]
[1756645859002,0.18446781,108420.0,108410.0,0.0083878]
[1756645861926,0.18446542,108430.0,108410.0,0.30448539]
[1756645862133,0.18446542,108430.0,108420.0,0.34541781]
[1756645862360,0.18446542,108430.0,108420.0,0.16295]
[1756645863173,0.18446542,108430.0,108420.0,0.16525584]
[1756645863694,0.18446542,108430.0,108420.0,0.16625584]
[1756645864884,0.18446542,108430.0,108420.0,0.35072365]
[1756645865258,0.18446542,108430.0,108420.0,0.16395]
[1756645865466,0.18446542,108430.0,108420.0,0.16625584]
[1756645870083,0.18446542,108430.0,108420.0,0.16391]
[1756645870908,0.18644542,108430.0,108420.0,0.16391]
[1756645872114,0.18644542,108430.0,108420.0,0.00615]
[1756645872313,0.18644542,108430.0,108420.0,0.15876]
[1756645874392,0.18644542,108430.0,108420.0,0.16191]
[1756645878174,0.18446542,108430.0,108420.0,0.18484882]
[1756645878895,0.18274542,108430.0,108420.0,0.18484882]
[1756645879233,0.18274542,108430.0,108420.0,0.02708882]
[1756645879434,0.18274542,108430.0,108420.0,0.18480882]
[1756645882061,0.18274542,108430.0,108420.0,0.02708882]
[1756645882262,0.18274542,108430.0,108420.0,0.18480882]
[1756645885563,0.65597662,108440.0,108420.0,0.18480882]
[1756645885912,0.18494741,108430.0,108420.0,0.18480882]
[1756645886116,0.18446542,108430.0,108420.0,0.18480882]
[1756645886469,0.18446542,108430.0,108420.0,0.18380882]
[1756645887385,0.18406542,108430.0,108420.0,0.18480882]
[1756645894554,0.18406542,108430.0,108420.0,0.001]
[1756645894756,0.18415542,108430.0,108420.0,0.001]
[1756645897375,0.18415542,108430.0,108420.0,0.00424]
[1756645899091,0.18415542,108430.0,108420.0,0.001]
[1756645900346,0.18415542,108430.0,108420.0,0.00424]
[1756645902867,0.21187642,108430.0,108420.0,0.00621]
[1756645903874,0.36942642,108430.0,108420.0,0.00621]
[1756645905819,0.21178642,108430.0,108420.0,0.00621]
[1756645906945,0.21187642,108430.0,108420.0,0.001]
[1756645908782,0.21187642,108430.0,108420.0,0.00297]
[1756645908947,0.21187642,108430.0,108420.0,0.00621]
[1756645909952,0.36938642,108430.0,108420.0,0.00621]
[1756645910355,0.21178642,108430.0,108420.0,0.00621]
[1756645911192,0.21187642,108430.0,108420.0,0.00621]
[1756645911391,0.21187642,108430.0,108420.0,0.001]
[1756645912043,0.21252624,108430.0,108420.0,0.001]
[1756645912283,0.21252624,108430.0,108420.0,0.00417]
[1756645914616,0.21243624,108430.0,108420.0,0.00621]
[1756645916268,0.21252624,108430.0,108420.0,0.00621]
[1756645916658,0.21252624,108430.0,108420.0,0.00417]
[1756645917026,0.21252624,108430.0,108420.0,0.001]
[1756645918580,0.21252624,108430.0,108420.0,0.00417]
[1756645920015,0.21252624,108430.0,108420.0,0.00621]
[1756645921552,0.21243624,108430.0,108420.0,0.00621]
[1756645922276,0.21252624,108430.0,108420.0,0.00621]
[1756645923101,0.21243624,108430.0,108420.0,0.00621]
[1756645923512,0.21252624,108430.0,108420.0,0.00621]
[1756645924731,0.21243624,108430.0,108420.0,0.00621]
[1756645925142,0.18471524,108430.0,108420.0,0.02945466]
[1756645925347,0.18480524,108430.0,108420.0,0.02193882]
[1756645925551,0.18480524,108430.0,108420.0,0.001]
[1756645925972,0.21252624,108430.0,108420.0,0.001]
[1756645926379,0.21252624,108430.0,108420.0,0.00417]
[1756645932509,0.21252624,108430.0,108420.0,0.00621]
[1756645932736,0.21252624,108430.0,108420.0,0.001]
[1756645932900,0.21252624,108430.0,108420.0,0.00417]
[1756645933934,0.21252624,108430.0,108420.0,0.001]
[1756645935014,0.64555625,108430.0,108420.0,0.001]
[1756645937099,0.71647625,108430.0,108420.0,0.001]
[1756645943445,0.87391625,108430.0,108420.0,0.001]
[1756645943652,0.87386625,108430.0,108420.0,0.001]
[1756645946203,0.87391625,108430.0,108420.0,0.001]
[1756645948238,0.87386625,108430.0,108420.0,0.001]
[1756645948655,0.71642625,108430.0,108420.0,0.001]
[1756645948887,0.87382625,108430.0,108420.0,0.001]
[1756645952626,0.87382625,108430.0,108420.0,1e-08]
[1756645953249,0.95125698,108430.0,108420.0,1e-08]
[1756645954959,0.18450184,108400.0,108390.0,0.00312]
[1756645955171,0.34190184,108400.0,108390.0,0.00359721]
[1756645955375,0.34190184,108400.0,108390.0,0.00556721]
[1756645955584,0.34269124,108400.0,108390.0,0.00556721]
[1756645956142,0.37042324,108400.0,108390.0,0.00556721]
[1756645956384,0.37042324,108400.0,108390.0,0.00756721]
[1756645958670,0.37042324,108400.0,108390.0,0.00956721]
[1756645960838,0.21302324,108400.0,108390.0,0.00956721]
[1756645961045,0.37038324,108400.0,108390.0,0.00956721]
[1756645961681,0.14978911,108400.0,108390.0,0.00956721]
[1756645961880,0.33477294,108400.0,108390.0,0.00956721]
[1756645962083,0.36283272,108400.0,108390.0,0.00956721]
[1756645963227,0.36283272,108400.0,108390.0,0.00447721]
[1756645963228,0.36292272,108400.0,108390.0,0.00447721]
[1756645963422,0.36283272,108400.0,108390.0,0.00956721]
[1756645964211,0.36283272,108400.0,108390.0,0.00756721]
[1756645964417,0.36283272,108400.0,108390.0,0.00556721]
[1756645964615,0.37040361,108400.0,108390.0,0.00556721]
[1756645965021,0.21304361,108400.0,108390.0,0.00556721]
[1756645965168,0.37040361,108400.0,108390.0,0.00556721]
[1756645968475,0.71040361,108400.0,108390.0,0.00556721]
[1756645981217,0.71032361,108400.0,108390.0,0.00556721]
[1756645981804,0.55304361,108400.0,108390.0,0.00556721]
[1756645982020,0.71032361,108400.0,108390.0,0.00556721]
[1756645984309,0.71041361,108400.0,108390.0,0.00556721]
[1756645984512,0.71041361,108400.0,108390.0,0.00359721]
[1756645985002,0.55313361,108400.0,108390.0,0.00359721]
[1756645985220,0.71041361,108400.0,108390.0,0.00359721]
[1756645985638,0.80339362,108400.0,108390.0,0.00047721]
[1756645986492,0.80439362,108400.0,108390.0,0.00047721]
[1756645986879,0.80439362,108400.0,108390.0,0.00341721]
[1756645986880,0.80539362,108400.0,108390.0,0.00341721]
[1756645987124,0.80539362,108400.0,108390.0,0.00556721]
[1756645987334,0.55513361,108400.0,108390.0,0.00556721]
[1756645987546,0.71232361,108400.0,108390.0,0.00556721]
[1756645988131,0.71241361,108400.0,108390.0,0.00556721]
[1756645993878,0.7158143,108400.0,108390.0,0.00556721]
[1756645994487,0.7157743,108400.0,108390.0,0.00556721]
[1756645994693,0.5584443,108400.0,108390.0,0.00556721]
[1756645994890,0.3756843,108400.0,108390.0,0.00556721]
[1756645995123,0.3479523,108400.0,108390.0,0.00556721]
[1756645996338,0.3469523,108400.0,108390.0,0.00556721]
[1756645997540,0.3459523,108400.0,108390.0,0.00556721]
[1756645997717,0.3459123,108400.0,108390.0,0.00517981]
[1756645998297,0.1887123,108400.0,108390.0,0.00517981]
[1756646005695,0.1888023,108400.0,108390.0,0.00517981]
[1756646005907,0.1888023,108400.0,108390.0,8.981e-05]
[1756646006518,0.2165313,108400.0,108390.0,8.981e-05]
[1756646013072,0.2165313,108400.0,108390.0,0.00315981]
[1756646013276,0.2165313,108400.0,108390.0,8.981e-05]
[1756646015168,0.3736513,108400.0,108390.0,0.00315981]
[1756646016527,0.3736513,108400.0,108390.0,0.00511981]
[1756646020758,0.3736513,108400.0,108390.0,0.00315981]
[1756646021203,0.3735213,108400.0,108390.0,0.00315981]
[1756646021419,0.2164413,108400.0,108390.0,0.00511981]
[1756646021775,0.3735213,108400.0,108390.0,0.00511981]
[1756646024362,0.3735213,108400.0,108390.0,0.00742629]
[1756646026250,0.3735213,108400.0,108390.0,0.00511981]
[1756646026654,0.2164413,108400.0,108390.0,0.00511981]
[1756646026850,0.3735213,108400.0,108390.0,0.00511981]
[1756646027712,0.2164413,108400.0,108390.0,0.00511981]
[1756646027919,0.3735213,108400.0,108390.0,0.00511981]
[1756646030943,0.2164413,108400.0,108390.0,0.00511981]
[1756646031258,0.3734813,108400.0,108390.0,0.00511981]
[1756646034289,0.2164413,108400.0,108390.0,0.00511981]
[1756646034456,0.3734813,108400.0,108390.0,0.00511981]
[1756646034654,0.2164413,108400.0,108390.0,0.11903864]
[1756646034854,0.1887123,108400.0,108390.0,0.3035575]
[1756646035056,0.1887123,108400.0,108390.0,0.11903864]
[1756646037046,0.1888023,108400.0,108390.0,0.11903864]
[1756646037433,0.1887123,108400.0,108390.0,0.11903864]
[1756646039255,0.1888023,108400.0,108390.0,0.11400864]
[1756646039401,0.1888023,108400.0,108390.0,8.981e-05]
[1756646039852,0.2165313,108400.0,108390.0,8.981e-05]
[1756646047202,0.2165813,108400.0,108390.0,8.981e-05]
[1756646049875,0.2165313,108400.0,108390.0,8.981e-05]
[1756646050082,0.21238893,108400.0,108390.0,8.981e-05]
[1756646050515,0.2132891,108400.0,108390.0,8.981e-05]
[1756646051640,0.5532891,108400.0,108390.0,8.981e-05]
[1756646056888,0.7101691,108400.0,108390.0,8.981e-05]
[1756646057162,0.7101691,108400.0,108390.0,0.00539981]
[1756646057301,0.5532891,108400.0,108390.0,0.00539981]
[1756646057525,0.7101691,108400.0,108390.0,0.00539981]
[1756646061127,0.7101691,108400.0,108390.0,0.00327981]
[1756646061340,0.7101691,108400.0,108390.0,8.981e-05]
[1756646063373,0.7101691,108400.0,108390.0,0.00319981]
[1756646063797,0.7101691,108400.0,108390.0,8.981e-05]
[1756646066055,0.7101691,108400.0,108390.0,0.00319981]
[1756646067326,0.7101691,108400.0,108390.0,0.00516981]
[1756646067950,0.7101691,108400.0,108390.0,0.00319981]
[1756646070107,0.7101691,108400.0,108390.0,0.00516981]
[1756646071243,0.5532891,108400.0,108390.0,0.00516981]
[1756646071474,0.7101291,108400.0,108390.0,0.00516981]
[1756646071943,0.7101291,108400.0,108390.0,0.00319981]
[1756646072367,0.7101291,108400.0,108390.0,0.00516981]
[1756646072933,0.5532891,108400.0,108390.0,0.00516981]
[1756646073248,0.7100891,108400.0,108390.0,0.00516981]
[1756646074740,0.5532891,108400.0,108390.0,0.00516981]
[1756646074943,0.7099991,108400.0,108390.0,0.00516981]
[1756646076249,0.7100891,108400.0,108390.0,0.00516981]
[1756646076462,0.7100891,108400.0,108390.0,0.00319981]
[1756646078205,0.7100891,108400.0,108390.0,8.981e-05]
[1756646079693,0.7100891,108400.0,108390.0,0.00319981]
[1756646079895,0.7100491,108400.0,108390.0,0.00516981]
[1756646082789,0.7099591,108400.0,108390.0,0.00516981]
[1756646083172,0.7100491,108400.0,108390.0,0.00516981]
[1756646083401,0.7100491,108400.0,108390.0,0.00319981]
[1756646084556,0.7100491,108400.0,108390.0,0.00516981]
[1756646084988,0.5532891,108400.0,108390.0,0.00516981]
[1756646085307,0.7099591,108400.0,108390.0,0.00516981]
[1756646086570,0.7100491,108400.0,108390.0,0.00516981]
[1756646086721,0.7100491,108400.0,108390.0,0.00319981]
[1756646088512,0.7100491,108400.0,108390.0,0.00516981]
[1756646088711,0.7099591,108400.0,108390.0,0.00516981]
[1756646089367,0.7100491,108400.0,108390.0,0.00516981]
[1756646091326,0.7100491,108400.0,108390.0,0.00319981]
[1756646092825,0.5531991,108400.0,108390.0,0.00520981]
[1756646093274,0.7098791,108400.0,108390.0,0.00520981]
[1756646096078,0.7099691,108400.0,108390.0,0.00520981]
[1756646096284,0.7099691,108400.0,108390.0,8.981e-05]
[1756646097137,0.80299911,108400.0,108390.0,8.981e-05]
[1756646097808,0.87395911,108400.0,108390.0,8.981e-05]
[1756646101376,0.87390911,108400.0,108390.0,8.981e-05]
[1756646101866,0.90384487,108400.0,108390.0,8.981e-05]
[1756646102057,0.87395911,108400.0,108390.0,8.981e-05]
[1756646102607,0.87386911,108400.0,108390.0,8.981e-05]
[1756646104981,0.90380487,108400.0,108390.0,8.981e-05]
[1756646105646,0.93695955,108400.0,108390.0,8.981e-05]
[1756646106566,0.90907379,108400.0,108390.0,8.981e-05]
[1756646106785,0.90807379,108400.0,108390.0,8.981e-05]
[1756646107115,0.75243379,108400.0,108390.0,8.981e-05]
[1756646107316,0.90903379,108400.0,108390.0,8.981e-05]
[1756646109811,0.18451886,108390.0,108380.0,1e-08]
[1756646109988,0.46725355,108390.0,108380.0,1e-08]
[1756646110185,0.46824042,108390.0,108380.0,1e-08]
[1756646110389,0.52586418,108390.0,108380.0,1e-08]
[1756646110965,0.49597842,108390.0,108380.0,1e-08]
[1756646111370,0.58527474,108390.0,108380.0,1e-08]
[1756646111575,0.6151605,108390.0,108380.0,1e-08]
[1756646111734,0.34032842,108390.0,108380.0,1e-08]
[1756646111972,0.46377374,108390.0,108380.0,1e-08]
[1756646113275,0.46277374,108390.0,108380.0,1e-08]
[1756646113478,0.46477374,108390.0,108380.0,1e-08]
[1756646113704,0.31017374,108390.0,108380.0,0.00502001]
[1756646113891,0.46668374,108390.0,108380.0,0.00502001]
[1756646114138,0.46677374,108390.0,108380.0,0.00502001]
[1756646114524,0.31017374,108390.0,108380.0,0.00502001]
[1756646114699,0.46677374,108390.0,108380.0,0.00301001]
[1756646114905,0.31017374,108390.0,108380.0,0.00301001]
[1756646115106,0.46677374,108390.0,108380.0,0.00301001]
[1756646116311,0.46677374,108390.0,108380.0,0.00351001]
[1756646116536,0.31017374,108390.0,108380.0,0.00351001]
[1756646116740,0.46677374,108390.0,108380.0,0.00552001]
[1756646118566,0.46673374,108390.0,108380.0,0.00552001]
[1756646118988,0.46673374,108390.0,108380.0,0.00351001]
[1756646123477,0.46673374,108390.0,108380.0,0.00050001]
[1756646124475,0.31017374,108390.0,108380.0,0.00350001]
[1756646124745,0.46673374,108390.0,108380.0,0.00350001]
[1756646128666,0.46673374,108390.0,108380.0,0.00550001]
[1756646129698,0.46673374,108390.0,108380.0,0.00350001]
[1756646131679,0.31017374,108390.0,108380.0,0.00550001]
[1756646131858,0.46669374,108390.0,108380.0,0.00550001]
[1756646132374,0.31017374,108390.0,108380.0,0.00550001]
[1756646132585,0.46660374,108390.0,108380.0,0.00550001]
[1756646135889,0.46656374,108390.0,108380.0,0.00550001]
[1756646136615,0.37358373,108390.0,108380.0,0.00550001]
[1756646136841,0.71358373,108390.0,108380.0,0.00550001]
[1756646137677,0.71158373,108390.0,108380.0,0.00550001]
[1756646137888,0.70958373,108390.0,108380.0,0.00550001]
[1756646138094,0.71158373,108390.0,108380.0,0.00550001]
[1756646138427,0.70958373,108390.0,108380.0,0.00550001]
[1756646138665,0.71058373,108390.0,108380.0,0.00550001]
[1756646138985,0.71258373,108390.0,108380.0,0.00550001]
[1756646139403,0.55610373,108390.0,108380.0,0.00550001]
[1756646139746,0.71258373,108390.0,108380.0,0.00550001]
[1756646139970,0.71058373,108390.0,108380.0,0.00550001]
[1756646140395,0.21510373,108390.0,108380.0,0.00550001]
[1756646140605,0.37058373,108390.0,108380.0,0.00550001]
[1756646141030,0.36958373,108390.0,108380.0,0.00650001]
[1756646141948,0.34184573,108390.0,108380.0,0.00650001]
[1756646142597,0.18536573,108390.0,108380.0,0.0088067]
[1756646142796,0.34180573,108390.0,108380.0,0.0088067]
[1756646143004,0.34180573,108390.0,108380.0,0.00650001]
[1756646144079,0.15644,108390.0,108380.0,0.00650001]
[1756646144321,0.33848099,108390.0,108380.0,0.00650001]
[1756646144524,0.337999,108390.0,108380.0,0.00650001]
[1756646145129,0.33877399,108390.0,108380.0,0.00650001]
[1756646149744,0.33877399,108390.0,108380.0,0.0088067]
[1756646150196,0.33877399,108390.0,108380.0,0.00650001]
[1756646150603,0.18529385,108390.0,108380.0,0.00650001]
[1756646151244,0.18529385,108390.0,108380.0,0.00150001]
[1756646151245,0.18538385,108390.0,108380.0,0.00150001]
[1756646151469,0.46704968,108390.0,108380.0,0.00150001]
[1756646151671,0.65156854,108390.0,108380.0,0.00150001]
[1756646152257,0.67930454,108390.0,108380.0,0.00050001]
[1756646152463,0.7091903,108390.0,108380.0,0.00050001]
[1756646152666,0.7101903,108390.0,108380.0,0.00050001]
[1756646153697,0.59506233,108390.0,108380.0,0.00050001]
[1756646154081,0.59590462,108390.0,108380.0,0.00050001]
[1756646157518,0.56601886,108390.0,108380.0,0.00050001]
[1756646158577,0.56596886,108390.0,108380.0,0.00050001]
[1756646159233,0.72232886,108390.0,108380.0,0.00050001]
[1756646159978,0.56596886,108390.0,108380.0,0.00050001]
[1756646160202,0.53281418,108390.0,108380.0,0.00568001]
[1756646160568,0.68917418,108390.0,108380.0,0.00568001]
[1756646161940,0.68917418,108390.0,108380.0,0.00358001]
[1756646163524,0.68917418,108390.0,108380.0,0.00568001]
[1756646164467,0.68917418,108390.0,108380.0,0.00358001]
[1756646164860,0.68917418,108390.0,108380.0,0.00050001]
[1756646167556,0.68917418,108390.0,108380.0,0.00358001]
[1756646170760,0.68917418,108390.0,108380.0,0.00568001]
[1756646172268,0.53281418,108390.0,108380.0,0.00568001]
[1756646172468,0.68913418,108390.0,108380.0,0.00568001]
[1756646175783,0.68913418,108390.0,108380.0,0.00050001]
[1756646179306,0.53281418,108390.0,108380.0,0.00568001]
[1756646179508,0.43983417,108390.0,108380.0,0.00568001]
[1756646179859,0.59611417,108390.0,108380.0,0.00568001]
[1756646185057,0.43983417,108390.0,108380.0,0.00568001]
[1756646185272,0.59607417,108390.0,108380.0,0.00568001]
[1756646185690,0.43983417,108390.0,108380.0,0.00568001]
[1756646185899,0.02085757,108390.0,108380.0,0.00568001]
[1756646186103,0.20585842,108390.0,108380.0,0.00568001]
[1756646186278,0.54537643,108390.0,108380.0,0.00568001]
[1756646187129,0.00184229,108390.0,108380.0,0.30644142]
[1756646187342,0.18636115,108390.0,108380.0,0.33186373]
[1756646190524,0.18636115,108390.0,108380.0,0.00568001]
[1756646192339,0.18636115,108390.0,108380.0,0.0079867]
[1756646193146,0.18636115,108390.0,108380.0,0.00568001]
[1756646193867,0.00184229,108390.0,108380.0,0.30644142]
[1756646194128,0.00184229,108390.0,108380.0,0.30413473]
[1756646196097,0.18636115,108390.0,108380.0,0.30413473]
[1756646198938,0.00184229,108390.0,108380.0,0.30413473]
[1756646199588,0.00184229,108390.0,108380.0,0.33186373]
[1756646200789,0.18636115,108390.0,108380.0,0.33186373]
[1756646202608,0.18636115,108390.0,108380.0,0.30413473]
[1756646204577,0.00184229,108390.0,108380.0,0.30413473]
[1756646207209,0.00184229,108390.0,108380.0,0.70413473]
[1756646208297,0.00184229,108390.0,108380.0,0.73186273]
[1756646208920,0.00084229,108390.0,108380.0,0.73186273]
[1756646209131,0.00084229,108390.0,108380.0,0.73286273]
[1756646209301,0.00084229,108390.0,108380.0,0.73586273]
[1756646209733,0.00084229,108390.0,108380.0,0.73486273]
[1756646210729,0.027727,108430.0,108420.0,0.60540663]
[1756646210951,0.18525225,108480.0,108450.0,0.20535497]
[1756646211168,0.18444225,108480.0,108460.0,0.15842499]
[1756646211386,0.18567277,108470.0,108460.0,0.16049499]
[1756646211599,0.00129,108470.0,108460.0,0.16164499]
[1756646211827,0.00177199,108470.0,108460.0,0.15842499]
[1756646212011,0.00181972,108470.0,108460.0,0.18670476]
[1756646212275,0.1857205,108470.0,108460.0,0.34051977]
[1756646212717,0.00333773,108470.0,108460.0,0.34051977]
[1756646212934,0.1877205,108470.0,108460.0,0.34051977]
[1756646213175,0.18439977,108460.0,108450.0,0.21255083]
[1756646213390,0.18568977,108460.0,108450.0,0.34091883]
[1756646214724,0.18568977,108460.0,108450.0,0.52533561]
[1756646215387,0.00129,108460.0,108450.0,0.52855561]
[1756646215577,4.773e-05,108470.0,108460.0,0.18439977]
[1756646215740,0.00204773,108470.0,108460.0,0.18968977]
[1756646215949,0.1877205,108470.0,108460.0,0.18968977]
[1756646216159,0.1877205,108470.0,108460.0,0.34572977]
[1756646216762,0.1857205,108470.0,108460.0,0.34572977]
[1756646217186,0.1857205,108470.0,108460.0,0.18968977]
[1756646217410,0.1857205,108470.0,108460.0,0.34572977]
[1756646218056,4.773e-05,108470.0,108460.0,0.34572977]
[1756646218632,0.00204773,108470.0,108460.0,0.34572977]
[1756646219670,0.00204773,108470.0,108460.0,0.4596486]
[1756646223301,0.00204773,108470.0,108460.0,0.7317629]
[1756646223515,0.00204773,108470.0,108460.0,0.9317629]
[1756646223723,0.00204773,108470.0,108460.0,0.9594689]
[1756646224940,0.00204773,108470.0,108460.0,1.2994689]
[1756646225389,0.00204773,108470.0,108460.0,1.3014689]
[1756646225827,4.773e-05,108470.0,108460.0,1.3014689]
[1756646225993,4.773e-05,108470.0,108460.0,1.1474289]
[1756646226207,4.773e-05,108470.0,108460.0,1.3013889]
[1756646226419,4.773e-05,108470.0,108460.0,1.3043889]
[1756646226619,4.773e-05,108470.0,108460.0,1.3023889]
[1756646227019,4.773e-05,108470.0,108460.0,1.7023889]
[1756646227639,4.773e-05,108470.0,108460.0,1.7053889]
[1756646227815,4.773e-05,108470.0,108460.0,1.5494289]
[1756646228223,4.773e-05,108470.0,108460.0,1.7053889]
[1756646230139,4.773e-05,108470.0,108460.0,1.5494289]
[1756646230343,4.773e-05,108470.0,108460.0,1.7053489]
[1756646232166,4.773e-05,108470.0,108460.0,1.5494289]
[1756646232406,4.773e-05,108470.0,108460.0,1.9728489]
[1756646233074,4.773e-05,108470.0,108460.0,2.0700889]
[1756646233291,4.773e-05,108470.0,108460.0,1.9728489]
[1756646233832,4.773e-05,108470.0,108460.0,1.8169289]
[1756646234028,4.773e-05,108470.0,108460.0,1.9728489]
[1756646234478,4.773e-05,108470.0,108460.0,1.4169289]
[1756646234711,4.773e-05,108470.0,108460.0,1.3728089]
[1756646238569,4.773e-05,108470.0,108460.0,1.3006946]
[1756646239002,4.773e-05,108470.0,108460.0,1.1448146]
[1756646239210,4.773e-05,108470.0,108460.0,1.3006946]
[1756646240037,4.773e-05,108470.0,108460.0,1.1448146]
[1756646240241,4.773e-05,108470.0,108460.0,1.3006946]
[1756646244390,4.773e-05,108470.0,108460.0,1.5006946]
[1756646245465,4.773e-05,108470.0,108460.0,1.9006946]
[1756646246116,4.773e-05,108470.0,108460.0,2.0006946]
[1756646247529,0.18419605,108510.0,108500.0,0.20527061]
[1756646247868,0.1846732,108510.0,108500.0,0.52593062]
[1756646247998,0.1859632,108510.0,108500.0,0.52593062]
[1756646248604,0.1867732,108510.0,108500.0,0.34155883]
[1756646249841,0.1877732,108510.0,108500.0,0.34155883]
[1756646250447,0.1877732,108510.0,108500.0,0.52589062]
[1756646250643,0.1877732,108510.0,108500.0,0.34155883]
[1756646251932,0.00276715,108510.0,108500.0,0.59800492]
[1756646252112,0.00276715,108510.0,108500.0,0.60312492]
[1756646252355,0.18708195,108510.0,108500.0,0.45454983]
[1756646252753,0.18789195,108510.0,108500.0,0.45494983]
[1756646254191,0.18708195,108510.0,108500.0,0.45494983]
[1756646255449,0.18708195,108510.0,108500.0,0.29778983]
[1756646255881,0.18789195,108510.0,108500.0,0.45574983]
[1756646256218,0.18789195,108510.0,108500.0,0.29778983]
[1756646256415,0.18789195,108510.0,108500.0,0.45574983]
[1756646257775,0.18708195,108510.0,108500.0,0.45574983]
[1756646258791,0.18708195,108510.0,108500.0,0.64008162]
[1756646259000,0.18708195,108510.0,108500.0,0.64520162]
[1756646259706,0.18579195,108510.0,108500.0,0.64520162]
[1756646260471,0.18579195,108510.0,108500.0,0.46086983]
[1756646260662,0.18708195,108510.0,108500.0,0.45881983]
[1756646260873,0.18708195,108510.0,108500.0,0.45574983]
[1756646261107,0.18708195,108510.0,108500.0,0.41794313]
[1756646261706,0.18708195,108510.0,108500.0,0.41487313]
[1756646262142,0.18579195,108510.0,108500.0,0.41999313]
[1756646262376,0.18579195,108510.0,108500.0,0.6461898]
[1756646262584,0.00147715,108510.0,108500.0,0.6461898]
[1756646262783,0.00147715,108510.0,108500.0,0.7961898]
[1756646263352,0.18938121,108530.0,108510.0,0.1843148]
[1756646263531,0.52952432,108530.0,108520.0,0.15864]
[1756646263758,0.53081432,108530.0,108520.0,0.15864]
[1756646264595,0.53381432,108530.0,108520.0,0.15864]
[1756646265237,0.53081432,108530.0,108520.0,0.15864]
[1756646266882,0.18429782,108520.0,108510.0,0.11698883]
[1756646267093,0.18429782,108520.0,108510.0,0.27550883]
[1756646267305,0.18429782,108520.0,108510.0,0.27755883]
[1756646267722,0.18558782,108520.0,108510.0,0.27755883]
[1756646268156,0.18658782,108520.0,108510.0,0.11903883]
[1756646268352,0.18658782,108520.0,108510.0,0.46183363]
[1756646268353,0.001,108520.0,108510.0,0.46183363]
[1756646271275,0.001,108520.0,108510.0,0.30335363]
[1756646271483,0.18658782,108520.0,108510.0,0.11698883]
[1756646271693,0.18658782,108520.0,108510.0,0.27530883]
[1756646272112,0.18658782,108520.0,108510.0,0.27223883]
[1756646272320,0.18658782,108520.0,108510.0,0.27728883]
[1756646272494,0.18658782,108520.0,108510.0,0.46168363]
[1756646273353,0.18658782,108520.0,108510.0,0.27736883]
[1756646273562,0.18658782,108520.0,108510.0,0.46168363]
[1756646274242,0.18658782,108520.0,108510.0,0.46164363]
[1756646274619,0.001,108520.0,108510.0,0.46164363]
[1756646276263,0.001,108520.0,108510.0,0.86164363]
[1756646277307,0.00014311,108530.0,108520.0,0.20523664]
[1756646277523,0.00014311,108530.0,108520.0,0.30115665]
[1756646277851,0.00014311,108530.0,108520.0,0.30326665]
[1756646278606,0.18426416,108540.0,108530.0,0.18428084]
[1756646278817,0.18426416,108540.0,108530.0,0.51167085]
[1756646280216,0.18555416,108540.0,108530.0,0.51167085]
[1756646280423,0.18555416,108540.0,108530.0,0.53260967]
[1756646280622,0.18555416,108540.0,108530.0,0.37408967]
[1756646280826,0.18555416,108540.0,108530.0,0.34315883]
[1756646281413,0.18555416,108540.0,108530.0,0.34319883]
[1756646281585,0.18555416,108540.0,108530.0,0.18475883]
[1756646281795,0.18555416,108540.0,108530.0,0.34315883]
[1756646282415,0.18555416,108540.0,108530.0,0.34311883]
[1756646282615,0.18636416,108540.0,108530.0,0.34311883]
[1756646283078,0.18636416,108540.0,108530.0,0.16382001]
[1756646283289,0.18428084,108530.0,108520.0,0.0721143]